Cogmind - Beta 13 @@@ ROGUE MODE // 2024.04.04 @ 16:54:52 Player: Rizzen Result: Destroyed by GG-3CU(R) with Subdweller Machine Gun Performance ------------- Evolutions (0) 0 Regions Visited (3) 600 Robots Destroyed (43) 215 Value Destroyed (978) 978 Prototype IDs (2) 40 Alien Tech Used (0) 0 Bonus (0) 0 TOTAL SCORE: 1833 Bonus ------- None Cogmind --------- Core Integrity 0/250 Matter 300/300 Energy 100/100 System Corruption 0% Temperature Cool (0) Movement Core (500) Ox9 Location -10/Subcaves Parts ------- > --- POWER (1) -------- (None) > --- PROPULSION (2) --- (None) > --- UTILITY (2) ------ Large Storage Unit Makeshift Light Armor Plating > --- WEAPON (2) ------- Heavy Assault Rifle Ripper > --- INVENTORY (15) --- Subdweller Power Source Wheel Heat Sink Visual Processing Unit Targeting Computer ECM Suite Makeshift Light Armor Plating Makeshift System Restoration Module Particle Cannon Particle Cannon Heavy Assault Rifle Heavy Assault Rifle Battle Cannon Grenade Launcher Multitool Peak State ------------ > --- POWER ------------ Subdweller Power Source > --- PROPULSION ------- Subdweller Monowheel Subdweller Monowheel > --- UTILITY ---------- Large Storage Unit Makeshift System Restoration Module > --- WEAPON ----------- Heavy Assault Rifle Ripper > --- INVENTORY -------- Subdweller Power Source Heat Sink Visual Processing Unit Targeting Computer ECM Suite Medium Armor Plating Makeshift Light Armor Plating Particle Cannon Particle Cannon Heavy Assault Rifle Heavy Assault Rifle Battle Cannon Grenade Launcher [Rating: 19] Favorites ----------- Power Light Nuclear Core Engine Subdweller Power Source Power Core Light Nuclear Core Propulsion Light Treads Treads Light Treads Wheel Subdweller Monowheel Utility Large Storage Unit Device Makeshift System Restoration Module Storage Large Storage Unit Protection Medium Armor Plating Weapon Heavy Assault Rifle Energy Gun Particle Gun Energy Cannon Particle Cannon Ballistic Gun Heavy Assault Rifle Launcher Grenade Launcher Slashing Weapon Ripper Build | -11 -10 -10 -10 ------- Run | Yrd Mat Min Sub Slots Evolved . | . . . . Power . | . . . . Propulsion . | . . . . Utility . | . . . . Weapon . | . . . . Parts Attached 60 | 6 19 . 35 Power 8 | 1 2 . 5 Engine 6 | 1 . . 5 Core 2 | . 2 . . Reactor . | . . . . Propulsion 12 | 2 3 . 7 Treads 10 | 2 3 . 5 Leg . | . . . . Wheel 2 | . . . 2 Hover . | . . . . Flight . | . . . . Utility 16 | 1 9 . 6 Device 4 | . 3 . 1 Storage 4 | 1 3 . . Processor . | . . . . Hackware . | . . . . Protection 8 | . 3 . 5 Artifact . | . . . . Weapon 24 | 2 5 . 17 Energy Gun 1 | . 1 . . Energy Cannon 2 | . 2 . . Ballistic Gun 14 | 2 2 . 10 Ballistic Cannon . | . . . . Launcher 4 | . . . 4 Special Weapon . | . . . . Impact Weapon . | . . . . Slashing Weapon 3 | . . . 3 Piercing Weapon . | . . . . Special Melee Weapon . | . . . . Unidentified Prototypes . | . . . . Parts Lost 10 | . . . 10 Power 3 | . . . 3 Propulsion 3 | . . . 3 Utility 3 | . . . 3 Weapon 1 | . . . 1 Highest Loss Streak 5 | . . . 5 To Critical Strikes 1 | . . . 1 Average Slot Usage (%) 88 | . 96 100 83 Engine 5 | . . . 7 Core 6 | . 12 14 3 Treads 17 | . 28 28 11 Wheel 1 | . . . 2 Device 1 | . 3 . 1 Storage 14 | . 14 14 14 Protection 11 | . 7 14 12 Energy Gun 1 | . 5 . . Ballistic Gun 24 | . 21 28 25 Slashing Weapon 1 | . . . 2 Naked Turns . | . . . . Heaviest Build 38 | 13 38 38 38 Greatest Support 40 | 40 40 40 40 Greatest Overweight (x) 12 | 1 . . 12 Average Overweight (x) 1 | . . . 2 Largest Inventory Capacity 15 | 8 15 15 15 Average Capacity 14 | 7 10 15 15 Most Carried 15 | 5 15 15 15 Average Carried 12 | 3 9 15 13 Final Capacity 15 | 8 15 15 15 Final Carried 15 | 2 15 15 15 Class Distribution -------------------- 95% | Mutant 4% | Scavenger-Mutant Dominant Class ---------------- Mutant | -10/Materials Mutant | -10/Mines Mutant | -10/Subcaves Resources | -11 -10 -10 -10 ----------- Run | Yrd Mat Min Sub Matter Collected 1551 | 205 468 64 814 Remotely . | . . . . Salvage Created 1335 | . 567 89 679 Parts 91 | . 42 7 42 Haulers Intercepted 2 | . 2 . . Recyclers Shooed . | . . . . Parts Field Recycled . | . . . . Retrieved Matter . | . . . . Parts Self-Destructed 10 | . . . 10 Prevented . | . . . . Kills | -11 -10 -10 -10 ------- Run | Yrd Mat Min Sub Combat Hostiles Destroyed 34 | . 11 6 17 Melee 1 | . . . 1 Guns 33 | . 11 6 16 Classes Destroyed 11 | . 8 . 3 Worker 1 | . 1 . . Tunneler 1 | . 1 . . Hauler 2 | . 2 . . Recycler 1 | . 1 . . Operator 1 | . 1 . . Watcher 3 | . 3 . . Swarmer 15 | . 5 6 4 Grunt 7 | . 6 . 1 Sentry 1 | . . . 1 Artisan 2 | . . . 2 Subdweller 11 | . . . 11 Best Kill Streak 4 | . 4 3 4 Combat Bots Only 4 | . 3 3 4 Max Kills in Single Turn 2 | . 2 1 2 Gunslinging 1 | . 1 . 1 Exploded . | . . . . Melee 1 | . . . 1 Uniques/NPCs Destroyed . | . . . . Combat | -11 -10 -10 -10 -------- Run | Yrd Mat Min Sub Hostile Shots Fired 226 | . 61 16 149 Missed 85 | . 16 1 68 Damage Taken 2298 | . 455 118 1725 Core 268 | . 40 42 186 Absorbed by Shields . | . . . . Regen/Repaired (Parts) 115 | . 115 . . Core Remaining (%) 100 | 100 . . . Volleys Fired 160 | . 73 9 78 Largest 2 | . 2 2 2 Hottest 85 | . 85 46 46 Shots Fired 309 | . 141 18 150 Gun 303 | . 141 18 144 Cannon . | . . . . Launcher 6 | . . . 6 Special . | . . . . Kinetic 249 | . 87 18 144 Thermal 54 | . 54 . . Explosive 6 | . . . 6 Electromagnetic . | . . . . Robot Hit Streak 15 | . 13 7 15 Robot Miss Streak 6 | . 6 3 2 Penetration Max . | . . . . Secondary Targets 8 | . 2 2 4 Max Gunslinging Chain 1 | . 1 1 1 Shots Hit Robots 204 | . 79 9 116 Core Hits 61 | . 25 6 30 Critical Kills 1 | . 1 . . Critical Parts Destroyed . | . . . . Critical Strikes 4 | . 3 . 1 Burn 2 | . 2 . . Destroy 2 | . 1 . 1 Melee Attacks 13 | . . . 13 Impact . | . . . . Slashing 13 | . . . 13 Piercing . | . . . . Sneak Attacks 3 | . . . 3 Combat Hostiles . | . . . . Follow-up Attacks . | . . . . Damage Inflicted 2686 | . 1095 128 1463 Guns 2392 | . 1095 128 1169 Cannons . | . . . . Explosions . | . . . . Melee 294 | . . . 294 Ramming . | . . . . Kinetic 1901 | . 604 128 1169 Thermal 491 | . 491 . . Explosive . | . . . . Electromagnetic . | . . . . Impact . | . . . . Slashing 294 | . . . 294 Piercing . | . . . . Highest Corruption 5 | . . . 5 Average Corruption 4 | . . . 4 Corruption Purged 5 | . . . 5 Corruption Blocked . | . . . . Effects 12 | . . . 12 Message Errors 2 | . . . 2 Matter Fused 3 | . . . 3 Heat Flow Errors 1 | . . . 1 Energy Discharges 2 | . . . 2 Data Loss (minor) 1 | . . . 1 Data Loss (major) 1 | . . . 1 Misfires 1 | . . . 1 Weapon Failures 1 | . . . 1 Overload Shots . | . . . . Overflow Damage 34 | . . . 34 Projectiles . | . . . . Explosions . | . . . . Melee 34 | . . . 34 Knockbacks . | . . . . Impact . | . . . . Kinetic . | . . . . Secondary . | . . . . Self-Inflicted Damage . | . . . . Shots . | . . . . Rammed . | . . . . Targets Rammed . | . . . . Kicked . | . . . . Crushed . | . . . . Highest Temperature 276 | . 276 . 65 Average Temperature 70 | . 70 . 46 Received Heat Transfer 333 | . 102 . 231 Siege Activations . | . . . . Robots Corrupted . | . . . . Combat Hostiles . | . . . . Parts Fried . | . . . . Impact Corruptions . | . . . . Robots Melted . | . . . . Combat Hostiles . | . . . . Parts Melted 4 | . 4 . . Heat Transferred 1332 | . 1332 . . Parts Sabotaged . | . . . . Parts Stolen . | . . . . Parts Stripped . | . . . . Power Chain Reactions . | . . . . Alert | -11 -10 -10 -10 ------- Run | Yrd Mat Min Sub Peak Influence 289 | . 289 85 . Initial . | . . . . Average 59 | . 72 41 . Maximum Alert Level 1 | . 1 . . Low Security (%) 95 | 100 93 100 . Level 1 4 | . 6 . . Level 2 . | . . . . Level 3 . | . . . . Level 4 . | . . . . Level 5 . | . . . . High Security . | . . . . Max Security . | . . . . Squads Dispatched 3 | . 3 . . Investigation 2 | . 2 . . Extermination . | . . . . Reinforcement 1 | . 1 . . Assault . | . . . . Garrison . | . . . . Intercept . | . . . . Searches Triggered . | . . . . Construction Impeded . | . . . . Haulers Reinforced . | . . . . Active Scanning Responses . | . . . . Cargo Convoy Interrupts . | . . . . Stealth | -11 -10 -10 -10 --------- Run | Yrd Mat Min Sub Distress Signals 1 | . 1 . . Communications Jammed . | . . . . Distress Signals . | . . . . Times Spotted 45 | . 21 5 19 Peak Tracking Total 4 | . 4 3 4 Tactical Retreats 3 | . . . 3 Traps | -11 -10 -10 -10 ------- Run | Yrd Mat Min Sub Traps Triggered 3 | . 2 . 1 Indirectly . | . . . . Trap Hack Attempts . | . . . . Triggered . | . . . . Disarmed . | . . . . Reprogrammed . | . . . . Reused . | . . . . Traps Extracted . | . . . . Installed . | . . . . Triggered . | . . . . Machines | -11 -10 -10 -10 ---------- Run | Yrd Mat Min Sub Machines Disabled 1 | . . 1 . Max in Single Turn 1 | . . 1 . Machines Repaired . | . . . . Machines Dismantled . | . . . . Machines Sabotaged . | . . . . Overloaded Fab Kills . | . . . . Hacking | -11 -10 -10 -10 --------- Run | Yrd Mat Min Sub Machines Accessed 8 | . 7 . 1 Terminals 4 | . 4 . . Fabricators . | . . . . Repair Stations 1 | . 1 . . Recycling Units 2 | . 2 . . Scanalyzers . | . . . . Garrison Access . | . . . . Total Hacks 22 | . 20 . 2 Successful 12 | . 10 . 2 Failed 10 | . 10 . . Catastrophic 3 | . 3 . . Database Lockouts . | . . . . Manual . | . . . . Terminals 11 | . 11 . . Fabricators . | . . . . Repair Stations 6 | . 6 . . Recycling Units 3 | . 3 . . Scanalyzers . | . . . . Garrison Access . | . . . . Terminal Hacks 4 | . 2 . 2 Record 2 | . . . 2 Prototype ID Bank 1 | . 1 . . Branch Access Points 1 | . 1 . . Fabricator Hacks . | . . . . Repair Station Hacks 5 | . 5 . . Scan Component 3 | . 3 . . Repair 2 | . 2 . . Recycling Unit Hacks 3 | . 3 . . Report Inventory 2 | . 2 . . Retrieve Components 1 | . 1 . . Scanalyzer . | . . . . Garrison Access Hacks . | . . . . Unauthorized Hacks . | . . . . Terminals . | . . . . Fabricators . | . . . . Repair Stations . | . . . . Recycling Units . | . . . . Scanalyzers . | . . . . Garrison Access . | . . . . Data Cores Recovered . | . . . . Used . | . . . . Hacking Detections 4 | . 4 . . Full Trace Events 3 | . 3 . . Feedback Events . | . . . . Feedback Blocked . | . . . . Robot Schematics Acquired . | . . . . Robots Built . | . . . . Authchips . | . . . . Time . | . . . . Total Robot Build Rating . | . . . . Part Schematics Acquired . | . . . . Parts Built . | . . . . Authchips . | . . . . Time . | . . . . Total Part Build Rating . | . . . . Parts Repaired 2 | . 2 . . Time 64 | . 64 . . Parts Recycled . | . . . . Recycled Matter . | . . . . Retrieved Matter . | . . . . Retrieved Components 3 | . 3 . . Parts Scanalyzed . | . . . . Part Schematics Acquired . | . . . . Parts Damaged . | . . . . Bothacking | -11 -10 -10 -10 ------------ Run | Yrd Mat Min Sub Used RIF Installer . | . . . . Robots Hacked . | . . . . Non-combat . | . . . . Combat . | . . . . Robot Hacks Applied . | . . . . Relay Couplers Released . | . . . . Fabnet Peak Effective % . | . . . . Robots Rewired . | . . . . Allies Hacked . | . . . . Hacks Repelled . | . . . . Allies | -11 -10 -10 -10 -------- Run | Yrd Mat Min Sub Total Allies . | . . . . Largest Group . | . . . . Highest-Rated Group . | . . . . Highest-Rated Ally . | . . . . Total Orders . | . . . . Ally Attacks . | . . . . Total Damage . | . . . . Kills . | . . . . Allies Corrupted . | . . . . Allies Melted . | . . . . Intel | -11 -10 -10 -10 ------- Run | Yrd Mat Min Sub Robot Analysis Total . | . . . . Derelict Logs Recovered 3 | . . 1 2 Drone Launches . | . . . . Drone Recoveries . | . . . . Exploration | -11 -10 -10 -10 ------------- Run | Yrd Mat Min Sub Turns Passed 10665 | 70 2124 1325 7146 Spaces Moved 4559 | 46 1106 725 2682 Core 604 | 15 . . 589 Treads 3607 | 31 1106 725 1745 Legs . | . . . . Wheels 348 | . . . 348 Hover . | . . . . Flight . | . . . . Fastest Speed 50 | 50 160 160 110 Average Speed 207 | 127 160 160 241 Slowest Speed 650 | 160 160 160 650 Overloaded Moves . | . . . . Propulsion Burnouts . | . . . . Robots Hopped . | . . . . Cave-ins Triggered 1 | . . . 1 Exploration Rate (%) 72 | 3 99 99 88 Regions Visited 3 Branch Regions 2 Pre-discovered Areas 3 | . . 1 2 Known Exits Taken 1 | . 1 . . Unknown Exits Taken 2 | 1 . 1 . Scrap Searched 8 | . . 1 7 Spaces Dug . | . . . . Terrain Destroyed 30 | . . . 30 Melee . | . . . . Projectile . | . . . . AOE 30 | . . . 30 Terrain Rammed . | . . . . Walls Destroyed . | . . . . Machines Disabled . | . . . . Actions | -11 -10 -10 -10 --------- Run | Yrd Mat Min Sub Total 5431 | 56 1326 872 3177 Wait 558 | . 73 139 346 Move 4556 | 45 1105 724 2682 Hop . | . . . . Pick Up 53 | 5 34 . 14 Fast Attach 6 | 3 3 . . Attach 22 | 3 4 . 15 Detach 2 | . . . 2 Swap 32 | . 12 . 20 Drop 29 | . 22 . 7 Fire 160 | . 73 9 78 Melee 13 | . . . 13 Ram . | . . . . Kick . | . . . . Crush . | . . . . Escape Stasis . | . . . . Rewire . | . . . . Trap . | . . . . Miscellaneous . | . . . . Route ------- -11/Scrapyard -10/Materials (discovered 5 exits: [*Mat x3] / *Min x2) -10/Mines (discovered 3 exits: [*Mat x2] / *Sub) -10/Subcaves (discovered 2 exits: [*Mat x2]) History --------- Turn | Location | Event 6 | -11/Scrapyard | Discovered new exit (range 14) 71 | -11/Scrapyard | Entered Materials 303 | -10/Materials | Build established: Mutant 391 | -10/Materials | Discovered new exit (range 11) 548 | -10/Materials | Discovered new exit (range 12) 890 | -10/Materials | Build established: Scavenger-Mutant 1033 | -10/Materials | Discovered new exit (range 16) 1286 | -10/Materials | Discovered new exit (range 11) 1300 | -10/Materials | Build established: Mutant 1342 | -10/Materials | Discovered new exit (range 10) 1399 | -10/Materials | Identified exit to Mines 2040 | -10/Materials | Repaired Lgt. Nuclear Core 2070 | -10/Materials | Repaired Lgt. Treads 2195 | -10/Materials | Entered Mines 2199 | -10/Mines | Met a Derelict bent on vengeance 2545 | -10/Mines | Learned location of Zion (-7) 2551 | -10/Mines | Discovered new exit (range 13) 2882 | -10/Mines | Discovered new exit (range 6) 3483 | -10/Mines | Discovered new exit (range 4) 3520 | -10/Mines | Entered Subcaves 3883 | -10/Subcaves | Visited Clippyterm 4624 | -10/Subcaves | Shifting Twisted Machinery released Flamer 4694 | -10/Subcaves | Shifting Twisted Machinery released Scrap Shield 5286 | -10/Subcaves | Core integrity fell below 50% 5543 | -10/Subcaves | Discovered new exit (range 7) 5870 | -10/Subcaves | Discovered new exit (range 9) 6379 | -10/Subcaves | Crushed by falling debris 6438 | -10/Subcaves | Lost 5 parts (1p2n1u1w) 6714 | -10/Subcaves | Shifting Twisted Machinery released Mak. Light Armor Plating 6759 | -10/Subcaves | Shifting Twisted Machinery released Mak. Light Armor Plating 6851 | -10/Subcaves | Shifting Twisted Machinery released Flamer 7201 | -10/Subcaves | Shifting Twisted Machinery released Sub. Machine Gun 10064 | -10/Subcaves | Core integrity fell below 20% 10641 | -10/Subcaves | Ambushed by angry Subdweller bent on revenge 10666 | -10/Subcaves | Destroyed by GG-3CU(R) with Subdweller Machine Gun Last Messages --------------- 09950_ C9-ZXK(u) cries out in pain. 09950_ C9-ZXK(u) destroyed. 09952_ Acquired 10 matter. 09956_ Subatomizers dissect the Multitool. 09962_ Acquired Lgt. Ion Engine. 09968_ Subatomizers dissect the Multitool. 09970_ Acquired Multitool. 09971_ Acquired 10 matter. 10049_ NY-0IM(R): "SUBMAD!" 10086_ NY-0IM(R) destroyed. 10607_ RD-4TE(u) tweaks Twisted Machinery. 10635_ Sneak attack on RD-4TE(u). 10635_ RD-4TE(u) cries out in pain. 10635_ RD-4TE(u) destroyed. 10641_ GG-3CU(R) angrily emerges from the Twisted Machinery. 10641_ GG-3CU(R): "MADSUB!" 10642_ Subatomizers dissect the Wheel. 10649_ Acquired Wheel. 10660_ Lgt. Ion Engine destroyed. Map ----- +----------------------------------------------------+ | ?????????????????????????????????????????????????? | | ?????????????????????????????????????????????????? | | ?????????????????????####?????????????????###??### | | ????????????????????## ######?????????#### #### | | ????????????????????# #????????## ## | | ??###???????????????### #????????# | | #?# ####??????????????## ##????????# | | ###"" ######????????### #????????## | | "## "" """"#????##### ##????????# ## | | "## !"" """"#???## ##?????????# ##? | | "## " ##?### ##????????### #####?? | | " "|"###?## ##????????## #?????? | | "##???# #########??##### #?????? | | ##????## ##????## #### #?????? | | ### ##??????# ##???## ## #?????? | | ### ##????#### ##### ###???? | | #???### ## #???? | | ###??## ## ## ##???? | | ####### ## ## ######????? | | ########### ##???????? | | ## ### #### ##????????## #????#### | | #####?###??### #?????????## ##?### | | ##????????????# ##???????### ### | | ##???????????###"" ###???### ## | | ####?????????# "#??## ## | | ##???????## R@ % #??# #### ### | | ##?????##"" ## #??# #### ##?## | | ##????# """######## ## ##### | | ## #????# "" ## ## | | ### ### ####???# " ## ### | | #####?###### #???# "" #####?### | | ######??## #???##"## #???????## | | ## #### #????##?# #####????????#### | | # ##???????#"###???????????????#### | | # ##????????###????????????????????### | | # #??????????????????????????????????? | | ###????????????????????????????????? | | ### #????????????????????????????????? | | ##?## ##????????????????????????????????? | | #???# ####?????????????????????????????????? | | ##?### #???????????????????????????????????? | | ##??# ##???????????????????????????????????? | | ####???# #???????????????????????????????????? | | ????##### ##???????????????????????????????????? | | ???## #####???????????????????????????????? | | ???# #### #???????????????????????????????? | | ???# #???## ####???????????????????????????????? | | ???# #????# ##?????????????????????????????????? | | ???# #????# #????????????###??????????????????? | | ???# ##??## ##???????????## ##?????????????????? | +----------------------------------------------------+ Best States ------------- Heat Dissipation 25 Energy Generation 15 Energy Capacity 250 Matter Stores 300 Matter Capacity 300 Sight Range 16 Terrain Scan Density 10 ECM Strength 1 Armor Coverage 225 Evasion (%) 50 Recoil Reduction 2 Item Schematics ----------------- None Robot Schematics ------------------ None Fabricated ------------ Nothing Alien Tech Used ----------------- None Achievements -------------- None Challenges ------------ None Game ------ Seed AlphaCobblerStorm Manual? 0 Play Time 00:46:37 Cumulative 10.9 hours Start 2024.04.04 @ 16:10:27 End 2024.04.04 @ 16:54:52 Sessions 1 Manual Loads 0 Difficulty Rogue Special Mode None Game No. 8 Rogue 8 Adventurer 0 Explorer 0 Win Type - Total 0 Types 0/0/0/0/0/0/0/0/0 Lore% 13 Gallery% 14 Achievement% 12 Wizard Run 0 Options --------- Layout 1 ASCII 0 Keyboard 0 Movement Mouse Keybinds 0 Fullscreen 1 Font 32/SmallcapsGlow Map View 50x35 Zoom Use 0% Tactical HUD 1 Map Filters NONE Filters NONE Steam 0 RUN: 58e59e65-90a8-41ac-be40-7a36f7fff7c0